Department Family,Date Paid,Expense Type,Expense Area,Supplier,Transaction Number,Amount,Vat Inclusive
Crown Prosecution Service ,05/01/22,Crown Court Graduated Fee Scheme,West Midlands Complex Casework Unit,6 Pump Court The Chambers of Mr Stephen Hockman,158502/NE,"40,592.80",Y
Crown Prosecution Service ,05/01/22,Crown Court Graduated Fee Scheme,Yorkshire and Humberside Complex Casework Unit,New Park Court Chambers Leeds,359558/NLQC,"32,777.40",Y
Crown Prosecution Service ,06/01/22,Crown Court Graduated Fee Scheme,Yorks and Humbs CC Legal,New Park Court Chambers Leeds,359151/AMQC,"30,055.80",Y
Crown Prosecution Service ,06/01/22,National Insurance payable,Balance Sheet,HM Revenue and Customs,948PB000021422209,"4,390,721.84",
Crown Prosecution Service ,06/01/22,PAYE payable,Balance Sheet,HM Revenue and Customs,948PB000021422209,"3,598,142.11",
Crown Prosecution Service ,06/01/22,Apprenticeship Levy payments Permanent,Other Corporate Admin Payments,HM Revenue and Customs,948PB000021422209,"6,996.96",
Crown Prosecution Service ,06/01/22,Apprenticeship Levy payments Permanent,Other Corporate Programme Payments,HM Revenue and Customs,948PB000021422209,"109,619.04",
Crown Prosecution Service ,06/01/22,Recoverable VAT control,Balance Sheet,FlyForm LTD Cardiff,INV-10567,"4,379.21",Y
Crown Prosecution Service ,06/01/22,IT services,DTS Programme Project Cost,FlyForm LTD Cardiff,INV-10567,"21,895.99",
Crown Prosecution Service ,07/01/22,Landlord service charge,Estate and FM: Programme,Government Property Agency London,00000001/14613,"33,063.17",
Crown Prosecution Service ,07/01/22,Recoverable VAT control,Balance Sheet,Government Property Agency London,00000001/14613,"2,640.13",Y
Crown Prosecution Service ,07/01/22,Landlord service charge,Estate and FM: Administration,Government Property Agency London,00000001/14613,"1,327.48",
Crown Prosecution Service ,07/01/22,Facilities management,Estate and FM: Programme,Government Property Agency London,00000001/14613,"13,200.64",
Crown Prosecution Service ,07/01/22,Recoverable VAT control,Balance Sheet,Government Property Agency London,00000001/14629,"22,538.80",Y
Crown Prosecution Service ,07/01/22,Reactive Maintenance,Estate and FM: Programme,Government Property Agency London,00000001/14629,"111,254.75",
Crown Prosecution Service ,07/01/22,Reactive Maintenance,Estate and FM: Administration,Government Property Agency London,00000001/14629,"1,439.27",
Crown Prosecution Service ,07/01/22,Landlord service charge,Estate and FM: Programme,Government Property Agency London,00000001/6866,"42,156.90",
Crown Prosecution Service ,07/01/22,Recoverable VAT control,Balance Sheet,Epiq Europe Ltd (Wordwave),0000001133,"4,413.76",Y
Crown Prosecution Service ,07/01/22,Transcriptions and Translation,Other Corporate Programme Payments,Epiq Europe Ltd (Wordwave),0000001133,"22,068.80",
Crown Prosecution Service ,07/01/22,Crown Court Graduated Fee Scheme,London North Complex Casework Unit,6 Kings Bench Walk- Chambers of D Fisher & D Perry,101890 LM2,"57,471.00",Y
Crown Prosecution Service ,07/01/22,Crown Court Graduated Fee Scheme,London North Crown Court Unit,Furnival Chambers,173163 TSIL LebagaOr,"34,336.92",Y
Crown Prosecution Service ,07/01/22,Crown Court Graduated Fee Scheme,Wessex Crown Court Unit,3PB (3 Paper Buildings),ASF387727,"30,174.60",Y
Crown Prosecution Service ,07/01/22,Crown Court Graduated Fee Scheme,London North Complex Casework Unit,5 King's Bench Walk,DRQC 170108,"31,365.00",Y
Crown Prosecution Service ,07/01/22,Crown Court Graduated Fee Scheme,London North Complex Casework Unit,QEB Hollis Whiteman Chambers,FC 110264 C,"30,220.80",Y
Crown Prosecution Service ,10/01/22,Short term leases from 2 to 12 months: Property,Estate and FM: Programme,Government Property Agency London,00000001/12301,"55,500.00",
Crown Prosecution Service ,10/01/22,Property management fees,Estate and FM: Programme,Government Property Agency London,00000001/14083,"4,753.36",Y
Crown Prosecution Service ,10/01/22,Landlord service charge,Estate and FM: Programme,Government Property Agency London,00000001/14083,"22,285.06",
Crown Prosecution Service ,10/01/22,National non domestic rates,Estate and FM: Programme,Government Property Agency London,00000001/14083,"16,640.00",
Crown Prosecution Service ,10/01/22,Short term leases from 2 to 12 months: Property,Estate and FM: Programme,Government Property Agency London,00000001/14084,"55,500.00",
Crown Prosecution Service ,10/01/22,Landlord service charge,Estate and FM: Programme,Government Property Agency London,00000001/9363,"74,193.02",Y
Crown Prosecution Service ,10/01/22,Landlord service charge,Estate and FM: Programme,Government Property Agency London,00000001/9378,"61,642.43",Y
Crown Prosecution Service ,10/01/22,Crown Court Graduated Fee Scheme,West Midlands Complex Casework Unit,6 Kings Bench Walk- Chambers of D Fisher & D Perry,101517 CUR,"89,066.52",Y
Crown Prosecution Service ,10/01/22,Crown Court Graduated Fee Scheme,East Midlands Crown Court Section,36 Bedford Row,207710/MCL,"28,246.80",Y
Crown Prosecution Service ,10/01/22,Crown Court Graduated Fee Scheme,West Midlands Complex Casework Unit,36 Bedford Row,209558/DT,"44,562.49",Y
Crown Prosecution Service ,10/01/22,Crown Court Graduated Fee Scheme,East Midlands Crown Court Section,1 High Pavement Chambers,275340 Rudaks PLJ,"41,093.16",Y
Crown Prosecution Service ,10/01/22,Crown Court Graduated Fee Scheme,Yorks and Humbs CC Legal,New Park Court Chambers Leeds,363323/AMQC,"56,953.50",Y
Crown Prosecution Service ,10/01/22,Recoverable VAT control,Balance Sheet,HM Treasury,44042,"9,164.55",Y
Crown Prosecution Service ,10/01/22,Shared services,Other Corporate Admin Payments,HM Treasury,44042,"45,822.75",
Crown Prosecution Service ,10/01/22,Recoverable VAT control,Balance Sheet,CGI IT UK Ltd,GB014072201,"15,562.11",Y
Crown Prosecution Service ,10/01/22,Intangibles asset purchase clearing CMS,DTS ICT Capital Expenditure,CGI IT UK Ltd,GB014072201,"77,810.57",
Crown Prosecution Service ,10/01/22,Recoverable VAT control,Balance Sheet,CGI IT UK Ltd,GB014072333,"10,555.95",Y
Crown Prosecution Service ,10/01/22,IT services,Apps and Hosting Contract,CGI IT UK Ltd,GB014072333,"52,779.73",
Crown Prosecution Service ,10/01/22,Recoverable VAT control,Balance Sheet,CGI IT UK Ltd,GB014072849,"13,917.60",Y
Crown Prosecution Service ,10/01/22,Intangibles asset purchase clearing CMS,DTS ICT Capital Expenditure,CGI IT UK Ltd,GB014072849,"69,588.00",
Crown Prosecution Service ,10/01/22,IT services,Service Desk Contract,CGI IT UK Ltd,GB014072895,"83,109.08",
Crown Prosecution Service ,10/01/22,Recoverable VAT control,Balance Sheet,CGI IT UK Ltd,GB014072895,"16,621.82",Y
Crown Prosecution Service ,10/01/22,IT services,Apps and Hosting Contract,CGI IT UK Ltd,GB014072914,"575,299.78",
Crown Prosecution Service ,10/01/22,Recoverable VAT control,Balance Sheet,CGI IT UK Ltd,GB014072914,"115,059.96",Y
Crown Prosecution Service ,10/01/22,IT services,DTS Programme Project Cost,eSynergy Solutions Ltd,INV00000396,"78,948.00",Y
Crown Prosecution Service ,11/01/22,Lease liability non current lease payments,Balance Sheet,Government Property Agency London,00000001/14378,"28,800.00",
Crown Prosecution Service ,11/01/22,Lease liability non current lease payments,Balance Sheet,Government Property Agency London,00000001/14379,"72,484.95",
Crown Prosecution Service ,11/01/22,Lease liability non current lease payments,Balance Sheet,Government Property Agency London,00000001/14382,"156,900.00",
Crown Prosecution Service ,11/01/22,Short term leases from 2 to 12 months: Property,Estate and FM: Programme,Government Property Agency London,00000001/14385,"48,123.00",
Crown Prosecution Service ,11/01/22,Lease liability non current lease payments,Balance Sheet,Government Property Agency London,00000001/14389,"87,000.00",
Crown Prosecution Service ,11/01/22,Lease liability non current lease payments,Balance Sheet,Government Property Agency London,00000001/14391,"244,327.50",
Crown Prosecution Service ,11/01/22,Property management fees,Estate and FM: Programme,Government Property Agency London,00000001/14394,"3,932.10",Y
Crown Prosecution Service ,11/01/22,National non domestic rates,Estate and FM: Programme,Government Property Agency London,00000001/14394,"25,472.00",
Crown Prosecution Service ,11/01/22,Short term leases from 2 to 12 months: Property,Estate and FM: Programme,Government Property Agency London,00000001/14395,"57,402.60",
Crown Prosecution Service ,11/01/22,Lease liability non current lease payments,Balance Sheet,Government Property Agency London,00000001/14410,"1,172,045.12",
Crown Prosecution Service ,11/01/22,Property management fees,Estate and FM: Administration,Government Property Agency London,00000001/14411,"6,092.02",Y
Crown Prosecution Service ,11/01/22,National non domestic rates,Estate and FM: Administration,Government Property Agency London,00000001/14411,"84,330.15",
Crown Prosecution Service ,11/01/22,Landlord service charge,Estate and FM: Administration,Government Property Agency London,00000001/14411,"279,917.80",
Crown Prosecution Service ,11/01/22,Landlord service charge,Estate and FM: Programme,Government Property Agency London,00000001/14411,"1,366,657.51",
Crown Prosecution Service ,11/01/22,National non domestic rates,Estate and FM: Programme,Government Property Agency London,00000001/14411,"411,729.54",
Crown Prosecution Service ,11/01/22,Property management fees,Estate and FM: Programme,Government Property Agency London,00000001/14411,"29,743.34",Y
Crown Prosecution Service ,11/01/22,National non domestic rates,Estate and FM: Programme,Government Property Agency London,00000001/14414,"40,617.21",
Crown Prosecution Service ,11/01/22,Lease liability non current lease payments,Balance Sheet,Government Property Agency London,00000001/14416,"32,778.00",
Crown Prosecution Service ,11/01/22,Lease liability non current lease payments,Balance Sheet,Government Property Agency London,00000001/14418,"26,746.38",
Crown Prosecution Service ,11/01/22,Short term leases from 2 to 12 months: Property,Estate and FM: Programme,Government Property Agency London,00000001/14420,"39,900.00",
Crown Prosecution Service ,11/01/22,Lease liability non current lease payments,Balance Sheet,Government Property Agency London,00000001/14425,"69,372.10",
Crown Prosecution Service ,11/01/22,Lease liability non current lease payments,Balance Sheet,Government Property Agency London,00000001/14465,"47,000.00",
Crown Prosecution Service ,11/01/22,Lease liability non current lease payments,Balance Sheet,Government Property Agency London,00000001/14468,"47,000.00",
Crown Prosecution Service ,11/01/22,Other Expert Fees,West Midlands Crown Court Unit,Eynon Finch Consulting Ltd Salisbury ,AB031269,"32,682.50",
Crown Prosecution Service ,11/01/22,Crown Court Graduated Fee Scheme,London North Crown Court Unit,5 King's Bench Walk,JB170044.T3,"28,434.60",Y
Crown Prosecution Service ,12/01/22,Crown Court Graduated Fee Scheme,South West Crown Court: North,Guildhall Chambers Bristol,190369CQ,"30,937.50",Y
Crown Prosecution Service ,12/01/22,Crown Court Very High Cost Cases Full Scheme,North West Crown Court Hub,Lincoln House Chambers,248494 JOA ST 1,"28,608.00",Y
Crown Prosecution Service ,12/01/22,Recoverable VAT control,Balance Sheet,Cabinet Office RM Shared Services,3813690,"7,920.00",Y
Crown Prosecution Service ,12/01/22,External Training,Operational HR Costs,Cabinet Office RM Shared Services,3813690,"39,600.00",
Crown Prosecution Service ,12/01/22,Other Staff Costs,Operational HR Costs,Cabinet Office RM Shared Services,3813690,"6,384.00",Y
Crown Prosecution Service ,13/01/22,Crown Court Graduated Fee Scheme,West Midlands Complex Casework Unit,2 Kings Bench Walk London,277200-CHE,"31,197.00",Y
Crown Prosecution Service ,13/01/22,Crown Court Graduated Fee Scheme,East of England Complex Casework Unit,2 Bedford Row Chambers,JAC 192310,"51,576.90",Y
Crown Prosecution Service ,13/01/22,Crown Court Graduated Fee Scheme,East of England Complex Casework Unit,2 Bedford Row Chambers,LS 192310,"28,522.45",Y
Crown Prosecution Service ,14/01/22,Crown Court Graduated Fee Scheme,East Midlands Crown Court Section,36 Bedford Row,204446-JEC-Trial etc,"37,195.38",Y
Crown Prosecution Service ,14/01/22,External legal advice - HR casework,Litigation,Government Legal Department,502209,"33,306.20",Y
Crown Prosecution Service ,14/01/22,Crown Court Graduated Fee Scheme,East Midlands Crown Court Section,Seven Bedford Row,leon smith,"61,941.30",Y
Crown Prosecution Service ,14/01/22,Crown Court Graduated Fee Scheme,West Midlands Complex Casework Unit,Citadel Chambers,RB/686498/WALKER,"33,366.30",Y
Crown Prosecution Service ,17/01/22,Crown Court Graduated Fee Scheme,East of England Crown Court,5 St Andrew's Hill,172350-2/DJ,"30,411.72",Y
Crown Prosecution Service ,17/01/22,Crown Court Graduated Fee Scheme,Wessex Crown Court Unit,Pump Court Chambers - 3 Pump Court,268445-SFJ,"32,667.60",Y
Crown Prosecution Service ,17/01/22,IT services,Other IT costs,Lumen Technologies UK Ltd,276100118/1068741,"45,600.97",Y
Crown Prosecution Service ,17/01/22,Recoverable VAT control,Balance Sheet,Lumen Technologies UK Ltd,276110290/1067521,"23,527.96",Y
Crown Prosecution Service ,17/01/22,IT services,PSN Services Contract,Lumen Technologies UK Ltd,276110290/1067521,"117,639.82",
Crown Prosecution Service ,17/01/22,IT services,PSN Connectivity Contract,Lumen Technologies UK Ltd,276110293/1067536,"153,325.53",Y
Crown Prosecution Service ,17/01/22,Data Communications,PSN Services Contract,Lumen Technologies UK Ltd,276505404/1069625,"36,949.83",Y
Crown Prosecution Service ,17/01/22,Crown Court Graduated Fee Scheme,Yorks and Humbs CC Legal,New Park Court Chambers Leeds,361763/GGO,"26,952.00",Y
Crown Prosecution Service ,17/01/22,Crown Court Very High Cost Cases Full Scheme,Yorkshire and Humberside Complex Casework Unit,Park Square Barristers (No 6 and Sovereign merged),397404/KMQC/STAGE8,"26,052.00",Y
Crown Prosecution Service ,17/01/22,Recoverable VAT control,Balance Sheet,Oracle Corporation UK Ltd,460011681,"4,909.44",Y
Crown Prosecution Service ,17/01/22,IT non capital software licences,Legal Reference and ICT Licenses,Oracle Corporation UK Ltd,460011681,"24,547.18",
Crown Prosecution Service ,17/01/22,Crown Court Graduated Fee Scheme,Yorks and Humbs CC Legal,Park Square Barristers (No 6 and Sovereign merged),492548/HJS,"34,645.28",Y
Crown Prosecution Service ,17/01/22,IT services,DTS Programme Project Cost,Mobilise Cloud Services Limited London,CPSINV031,"35,955.00",Y
Crown Prosecution Service ,17/01/22,IT services,Apps and Hosting Contract,CGI IT UK Ltd,GB014073270,"377,668.22",
Crown Prosecution Service ,17/01/22,Recoverable VAT control,Balance Sheet,CGI IT UK Ltd,GB014073270,"75,533.64",Y
Crown Prosecution Service ,17/01/22,Crown Court Graduated Fee Scheme,London North Complex Casework Unit,3 Raymond Buildings,HD/248483,"90,780.60",Y
Crown Prosecution Service ,17/01/22,Other managed/contractor services,DTS Programme Project Cost,Equal Experts London,INV-9631,"169,740.00",Y
Crown Prosecution Service ,17/01/22,Other managed/contractor services,DTS Programme Project Cost,Equal Experts London,INV-9815,"117,774.00",Y
Crown Prosecution Service ,17/01/22,IT services,DTS Programme Project Cost,eSynergy Solutions Ltd,INV00000403,"32,760.00",Y
Crown Prosecution Service ,17/01/22,IT services,DTS Programme Project Cost,eSynergy Solutions Ltd,INV00000412,"157,738.56",Y
Crown Prosecution Service ,18/01/22,Landlord service charge,Estate and FM: Programme,Government Property Agency London,00000001/14099SUPP,"26,245.09",
Crown Prosecution Service ,18/01/22,Property management fees,Estate and FM: Programme,Government Property Agency London,00000001/14384,"3,932.10",Y
Crown Prosecution Service ,18/01/22,Landlord service charge,Estate and FM: Programme,Government Property Agency London,00000001/14384,"19,194.97",
Crown Prosecution Service ,18/01/22,National non domestic rates,Estate and FM: Programme,Government Property Agency London,00000001/14384,"15,744.00",
Crown Prosecution Service ,18/01/22,Property management fees,Estate and FM: Programme,Government Property Agency London,00000001/14397,"3,932.10",Y
Crown Prosecution Service ,18/01/22,National non domestic rates,Estate and FM: Programme,Government Property Agency London,00000001/14397,"64,290.24",
Crown Prosecution Service ,18/01/22,Landlord service charge,Estate and FM: Programme,Government Property Agency London,00000001/14397,"91,642.62",
Crown Prosecution Service ,18/01/22,Landlord service charge,Estate and FM: Programme,Government Property Agency London,00000001/14398,"35,209.05",
Crown Prosecution Service ,18/01/22,National non domestic rates,Estate and FM: Programme,Government Property Agency London,00000001/14398,"20,160.00",
Crown Prosecution Service ,18/01/22,Property management fees,Estate and FM: Programme,Government Property Agency London,00000001/14398,"3,932.10",Y
Crown Prosecution Service ,18/01/22,Landlord service charge,Estate and FM: Programme,Government Property Agency London,00000001/14424,"25,927.50",
Crown Prosecution Service ,18/01/22,Property management fees,Estate and FM: Programme,Government Property Agency London,00000001/14426,"4,457.86",Y
Crown Prosecution Service ,18/01/22,Landlord service charge,Estate and FM: Programme,Government Property Agency London,00000001/14426,"8,642.50",
Crown Prosecution Service ,18/01/22,National non domestic rates,Estate and FM: Programme,Government Property Agency London,00000001/14426,"29,162.88",
Crown Prosecution Service ,18/01/22,Property management fees,Estate and FM: Programme,Government Property Agency London,00000001/14462,"4,885.36",Y
Crown Prosecution Service ,18/01/22,Landlord service charge,Estate and FM: Programme,Government Property Agency London,00000001/14462,"8,914.43",
Crown Prosecution Service ,18/01/22,National non domestic rates,Estate and FM: Programme,Government Property Agency London,00000001/14462,"17,408.00",
Crown Prosecution Service ,18/01/22,Lease liability non current lease payments,Balance Sheet,Government Property Agency London,00000001/14728,"28,503.67",
Crown Prosecution Service ,18/01/22,Overseas Residential accommodation,International Liaison Magistrates,Foreign And Commonwealth Office,1140996,"6,700.00",
Crown Prosecution Service ,18/01/22,FCO platform charges excluding leases,International External Funding,Foreign And Commonwealth Office,1140996,"9,200.00",
Crown Prosecution Service ,18/01/22,FCO platform charges excluding leases,International External Funding,Foreign And Commonwealth Office,1140996,"23,450.00",
Crown Prosecution Service ,18/01/22,FCO platform charges excluding leases,International Liaison Magistrates,Foreign And Commonwealth Office,1140996,"11,775.00",
Crown Prosecution Service ,18/01/22,FCO platform charges excluding leases,International External Funding,Foreign And Commonwealth Office,1140996,"9,100.00",
Crown Prosecution Service ,18/01/22,FCO platform charges excluding leases,International External Funding,Foreign And Commonwealth Office,1140996,"10,350.00",
Crown Prosecution Service ,18/01/22,FCO platform charges excluding leases,International External Funding,Foreign And Commonwealth Office,1140996,"16,400.00",
Crown Prosecution Service ,18/01/22,Overseas Residential accommodation,International Liaison Magistrates,Foreign And Commonwealth Office,1140996,"9,575.00",
Crown Prosecution Service ,18/01/22,Overseas Residential accommodation,International Liaison Magistrates,Foreign And Commonwealth Office,1140996,"11,575.00",
Crown Prosecution Service ,18/01/22,Overseas Residential accommodation,International External Funding,Foreign And Commonwealth Office,1140996,"6,375.00",
Crown Prosecution Service ,18/01/22,Overseas Residential accommodation,International External Funding,Foreign And Commonwealth Office,1140996,"4,650.00",
Crown Prosecution Service ,18/01/22,FCO platform charges excluding leases,International Liaison Magistrates,Foreign And Commonwealth Office,1140996,"8,200.00",
Crown Prosecution Service ,18/01/22,FCO platform charges excluding leases,International External Funding,Foreign And Commonwealth Office,1140996,"5,125.00",
Crown Prosecution Service ,18/01/22,FCO platform charges excluding leases,International External Funding,Foreign And Commonwealth Office,1140996,"5,625.00",
Crown Prosecution Service ,18/01/22,Overseas Residential accommodation,International External Funding,Foreign And Commonwealth Office,1140996,"11,325.00",
Crown Prosecution Service ,18/01/22,FCO platform charges excluding leases,International External Funding,Foreign And Commonwealth Office,1140996,"6,888.50",
Crown Prosecution Service ,18/01/22,FCO platform charges excluding leases,International External Funding,Foreign And Commonwealth Office,1140996,"15,475.00",
Crown Prosecution Service ,18/01/22,Overseas Residential accommodation,International External Funding,Foreign And Commonwealth Office,1140996,"4,800.00",
Crown Prosecution Service ,18/01/22,Overseas Residential accommodation,International Liaison Magistrates,Foreign And Commonwealth Office,1140996,"13,725.00",
Crown Prosecution Service ,18/01/22,FCO platform charges excluding leases,International Liaison Magistrates,Foreign And Commonwealth Office,1140996,"21,321.83",
Crown Prosecution Service ,18/01/22,Overseas Residential accommodation,International External Funding,Foreign And Commonwealth Office,1140996,"15,575.00",
Crown Prosecution Service ,18/01/22,Overseas Residential accommodation,International External Funding,Foreign And Commonwealth Office,1140996,"7,125.00",
Crown Prosecution Service ,18/01/22,Overseas Residential accommodation,International External Funding,Foreign And Commonwealth Office,1140996,"4,600.00",
Crown Prosecution Service ,18/01/22,FCO platform charges excluding leases,International Liaison Magistrates,Foreign And Commonwealth Office,1140996,"6,000.00",
Crown Prosecution Service ,18/01/22,Overseas Residential accommodation,International External Funding,Foreign And Commonwealth Office,1140996,"8,325.00",
Crown Prosecution Service ,18/01/22,FCO platform charges excluding leases,International External Funding,Foreign And Commonwealth Office,1140996,"7,325.00",
Crown Prosecution Service ,18/01/22,FCO platform charges excluding leases,International Liaison Magistrates,Foreign And Commonwealth Office,1140996,"14,400.00",
Crown Prosecution Service ,18/01/22,FCO platform charges excluding leases,International External Funding,Foreign And Commonwealth Office,1140996,"7,646.00",
Crown Prosecution Service ,18/01/22,FCO platform charges excluding leases,International External Funding,Foreign And Commonwealth Office,1140996,"9,750.00",
Crown Prosecution Service ,18/01/22,Overseas Residential accommodation,International External Funding,Foreign And Commonwealth Office,1140996,"4,907.75",
Crown Prosecution Service ,18/01/22,Crown Court Graduated Fee Scheme,London North Complex Casework Unit,5 King's Bench Walk,LO 171752,"48,362.40",Y
Crown Prosecution Service ,19/01/22,IT non capital software licences,Legal Reference and ICT Licenses,AutomatePro Ltd London,536,"103,420.80",Y
Crown Prosecution Service ,21/01/22,IT services,DTS Programme Project Cost,ICS.AI Ltd Basingstoke,0000000099,"175,272.60",Y
Crown Prosecution Service ,21/01/22,Crown Court Graduated Fee Scheme,London North Complex Casework Unit,6 Kings Bench Walk- Chambers of D Fisher & D Perry,102001 JH,"31,143.00",Y
Crown Prosecution Service ,21/01/22,Crown Court Graduated Fee Scheme,London North Crown Court Unit,6 Kings Bench Walk- Chambers of D Fisher & D Perry,98653 - ARCH,"38,386.56",Y
Crown Prosecution Service ,21/01/22,Crown Court Graduated Fee Scheme,London North Crown Court Unit,6 Kings Bench Walk- Chambers of D Fisher & D Perry,98653 TW,"26,052.66",Y
Crown Prosecution Service ,21/01/22,Crown Court Graduated Fee Scheme,London North Complex Casework Unit,5 King's Bench Walk,CP173693.Trial,"50,594.40",Y
Crown Prosecution Service ,21/01/22,Other Staff Costs,Finance Operations,Edenred,INV24973445,"3,884.00",
Crown Prosecution Service ,21/01/22,Salary sacrifice suspense,Balance Sheet,Edenred,INV24973445,"27,929.70",
Crown Prosecution Service ,21/01/22,Crown Court Graduated Fee Scheme,London North Complex Casework Unit,3 Raymond Buildings,WEJ/251381,"101,196.60",Y
Crown Prosecution Service ,24/01/22,Crown Court Graduated Fee Scheme,Counter Terrorism Unit: Internal Funding,Red Lion Chambers (18 RLC),162157BJ,"50,996.98",Y
Crown Prosecution Service ,24/01/22,Recoverable VAT control,Balance Sheet,Trustmarque Solutions Ltd,2333692,"9,815.29",Y
Crown Prosecution Service ,24/01/22,IT non capital software licences,Legal Reference and ICT Licenses,Trustmarque Solutions Ltd,2333692,"49,076.43",
Crown Prosecution Service ,24/01/22,IT services,DTS Programme Project Cost,Lumen Technologies UK Ltd,276413363/1069474,"129,938.71",Y
Crown Prosecution Service ,24/01/22,Crown Court Graduated Fee Scheme,East Midlands Crown Court Section,Seven Bedford Row,bains,"28,052.70",Y
Crown Prosecution Service ,24/01/22,IT services,DTS Programme Project Cost,CGI IT UK Ltd,GB014073423,"56,265.04",Y
Crown Prosecution Service ,24/01/22,Recoverable VAT control,Balance Sheet,CGI IT UK Ltd,GB014073431,"13,184.40",Y
Crown Prosecution Service ,24/01/22,IT services,Apps and Hosting Contract,CGI IT UK Ltd,GB014073431,"65,922.00",
Crown Prosecution Service ,24/01/22,IT services,DTS Programme Project Cost,Green Lemon Company Ltd Haywards Heath,GLC_Invoice_2022-01_391,"69,600.00",Y
Crown Prosecution Service ,25/01/22,Lease liability non current lease payments,Balance Sheet,Government Property Agency London,00000001/12866,"1,646,575.31",
Crown Prosecution Service ,25/01/22,IT non capital software licences,Legal Reference and ICT Licenses,ICS.AI Ltd Basingstoke,INV-547,"240,000.00",Y
Crown Prosecution Service ,26/01/22,Crown Court Graduated Fee Scheme,North West Crown Court Hub,Harrington Street Chambers,1154620/MCL,"52,030.20",Y
Crown Prosecution Service ,26/01/22,Recoverable VAT control,Balance Sheet,Korn Ferry (UK) Limited,1195069481,"6,920.68",Y
Crown Prosecution Service ,26/01/22,External Training,Operational HR Costs,Korn Ferry (UK) Limited,1195069481,"31,143.04",
Crown Prosecution Service ,26/01/22,External Training,Leadership and Talent Management,Korn Ferry (UK) Limited,1195069481,"3,460.34",
Crown Prosecution Service ,26/01/22,Crown Court Very High Cost Cases Full Scheme,London South Complex Casework Unit,Red Lion Chambers (18 RLC),155761IMstage5,"33,372.00",Y
Crown Prosecution Service ,26/01/22,Crown Court Graduated Fee Scheme,London South Complex Casework Unit,QEB Hollis Whiteman Chambers,BM 108546 A,"64,734.60",Y
Crown Prosecution Service ,26/01/22,Crown Court Graduated Fee Scheme,London South Complex Casework Unit,5 King's Bench Walk,BT168797.Trial,"58,078.26",Y
Crown Prosecution Service ,26/01/22,Crown Court Graduated Fee Scheme,London South Complex Casework Unit,5 King's Bench Walk,FR168797.Trial,"39,118.18",Y
Crown Prosecution Service ,26/01/22,Crown Court Graduated Fee Scheme,East Midlands Crown Court Section,Seven Bedford Row,smith cjc,"30,853.20",Y
Crown Prosecution Service ,26/01/22,Crown Court Graduated Fee Scheme,London South Complex Casework Unit,QEB Hollis Whiteman Chambers,TBR 108546 A,"43,154.40",Y
Crown Prosecution Service ,27/01/22,National non domestic rates,Estate and FM: Programme,Government Property Agency London,00000001/14086SUPP,"49,436.14",
Crown Prosecution Service ,27/01/22,National non domestic rates,Estate and FM: Programme,Government Property Agency London,00000001/14381SUPP,"59,198.63",
Crown Prosecution Service ,27/01/22,Landlord service charge,Estate and FM: Programme,Government Property Agency London,00000001/14424SUPP,"88,428.60",Y
Crown Prosecution Service ,27/01/22,Landlord service charge,Estate and FM: Programme,Government Property Agency London,00000001/14426SUPP,"29,476.20",Y
Crown Prosecution Service ,27/01/22,Crown Court Graduated Fee Scheme,Mersey Cheshire Complex Casework Unit,Harrington Street Chambers,1151227/NJ1,"48,795.90",Y
Crown Prosecution Service ,27/01/22,Crown Court Graduated Fee Scheme,North West Crown Court Hub,Lincoln House Chambers,246966 SLD,"28,244.76",Y
Crown Prosecution Service ,27/01/22,External legal advice - HR casework,Litigation,Government Legal Department,502254,"61,337.68",Y
Crown Prosecution Service ,27/01/22,Crown Court Graduated Fee Scheme,East Midlands Crown Court Section,Seven Bedford Row,ga gaskin,"26,747.16",Y
Crown Prosecution Service ,27/01/22,Recoverable VAT control,Balance Sheet,CGI IT UK Ltd,GB014073804,"39,176.73",Y
Crown Prosecution Service ,27/01/22,IT services,DTS Programme Project Cost,CGI IT UK Ltd,GB014073804,"195,883.63",
Crown Prosecution Service ,27/01/22,IT services,DTS Programme Project Cost,CGI IT UK Ltd,GB014073805,"434,105.00",
Crown Prosecution Service ,27/01/22,Recoverable VAT control,Balance Sheet,CGI IT UK Ltd,GB014073805,"86,821.00",Y
Crown Prosecution Service ,27/01/22,Recoverable VAT control,Balance Sheet,CGI IT UK Ltd,GB014073810,"11,962.80",Y
Crown Prosecution Service ,27/01/22,Intangibles asset purchase clearing CMS,DTS ICT Capital Expenditure,CGI IT UK Ltd,GB014073810,"59,814.00",
Crown Prosecution Service ,27/01/22,Crown Court Graduated Fee Scheme,London North Complex Casework Unit,QEB Hollis Whiteman Chambers,PE 110045 A,"61,020.60",Y
Crown Prosecution Service ,28/01/22,Recoverable VAT control,Balance Sheet,Mendip Media Group Ltd Tiverton,0000000182,"7,705.40",Y
Crown Prosecution Service ,28/01/22,Transcriptions and Translation,Other Corporate Programme Payments,Mendip Media Group Ltd Tiverton,0000000182,"38,527.00",
Crown Prosecution Service ,28/01/22,Crown Court Very High Cost Cases Full Scheme,London South Complex Casework Unit,Red Lion Chambers (18 RLC),155761IMstage4,"36,048.00",Y
Crown Prosecution Service ,28/01/22,Crown Court Graduated Fee Scheme,Thames Chiltern Crown Court Unit,2 Dr Johnson's Buildings,162601swr,"31,049.04",Y
Crown Prosecution Service ,28/01/22,Recoverable VAT control,Balance Sheet,AVR Transcription Ltd Bolton,DEC21-35541,"11,330.59",Y
Crown Prosecution Service ,28/01/22,Transcriptions and Translation,Other Corporate Programme Payments,AVR Transcription Ltd Bolton,DEC21-35541,"56,652.97",
Crown Prosecution Service ,31/01/22,Crown Court Graduated Fee Scheme,Thames Chiltern Crown Court Unit,2 Dr Johnson's Buildings,162601pde,"46,096.44",Y
Crown Prosecution Service ,31/01/22,Other Staff Costs,Operational Security Team,Cabinet Office RM Shared Services,3813105,"28,532.34",Y
Crown Prosecution Service ,31/01/22,Crown Court Graduated Fee Scheme,West Midlands Complex Casework Unit,9 St John Street (Nine),401557-1/GMW,"25,648.32",Y
Crown Prosecution Service ,31/01/22,Crown Court Graduated Fee Scheme,London South Crown Court Unit,9 Gough Chambers London,JCT377327A,"28,176.84",Y
